{"text_format":"3","workbook":"xlsx","n_sheets":1,"sheets":["Personiskais ikmēneša budžets"],"read":"whole","date_system":"1900"}

{"sheet":"Personiskais ikmēneša budžets","index":0,"n_rows":64,"n_cols":10,"rows_kept":64,"merged":[[1,1,1,9],[2,1,2,9],[4,1,6,1],[4,2,4,3],[4,6,5,8],[4,9,5,9],[5,2,5,3],[6,2,6,3],[6,6,7,8],[6,9,7,9],[7,1,9,1],[7,2,7,3],[8,2,8,3],[8,6,9,8],[8,9,9,9],[9,2,9,3],[22,6,22,9],[23,1,23,4],[31,6,31,9],[33,1,33,4],[38,6,38,9],[40,1,40,4],[44,6,44,9],[46,1,46,4],[50,6,50,9],[54,1,54,4],[57,6,57,9],[58,6,59,8],[58,9,59,9],[60,6,61,8],[60,9,61,9],[62,6,63,8],[62,9,63,9]]}
[]
[null,"Personiskais ikmēneša budžets"]
[]
[]
[null,"PROGNOZĒTIE MĒNEŠA IENĀKUMI","Ienākumi 1",null,{"v":2500,"d":"2,500 EUR"},null,"PROGNOZĒTĀ BILANCE (prognozētie ienākumi mīnus izdevumi)",null,null,{"$f":"E7-J59","v":{"v":940,"d":"940 EUR"}}]
[null,null,"Papildu ienākumi",null,{"v":500,"d":"500 EUR"}]
[null,null,"Kopējie mēneša ienākumi",null,{"$f":"SUM(E5:E6)","v":{"v":3000,"d":"3,000 EUR"}},null,"FAKTISKĀ BILANCE (faktiskie ienākumi mīnus izdevumi)",null,null,{"$f":"E10-J61","v":{"v":960,"d":"960 EUR"}}]
[null,"FAKTISKIE MĒNEŠA IENĀKUMI","Ienākumi 1",null,{"v":2500,"d":"2,500 EUR"}]
[null,null,"Papildu ienākumi",null,{"v":500,"d":"500 EUR"},null,"STARPĪBA (faktiskie mīnus prognozētie)",null,null,{"$f":"J7-J5","v":{"v":20,"d":"20 EUR"}}]
[null,null,"Kopējie mēneša ienākumi",null,{"$f":"SUM(E8:E9)","v":{"v":3000,"d":"3,000 EUR"}}]
[]
[null,"MĀJOKLIS","Prognozētās izmaksas","Faktiskās izmaksas","Starpība",null,"IZKLAIDE","Prognozētās izmaksas","Faktiskās izmaksas","Starpība"]
[null,"Hipotekārais kredīts vai īres maksa",{"v":1500,"d":"1,500 EUR"},{"v":1400,"d":"1,400 EUR"},{"$f":"Tabula1[[#This Row],[Prognozētās izmaksas]]-Tabula1[[#This Row],[Faktiskās izmaksas]]","v":{"v":100,"d":"100 EUR"}},null,"Video/DVD",{"v":0,"d":"0 EUR"},{"v":50,"d":"50 EUR"},{"$f":"Tabula2[[#This Row],[Prognozētās izmaksas]]-Tabula2[[#This Row],[Faktiskās izmaksas]]","v":{"v":-50,"d":"-50 EUR"}}]
[null,"Tālrunis",{"v":60,"d":"60 EUR"},{"v":100,"d":"100 EUR"},{"$f":"Tabula1[[#This Row],[Prognozētās izmaksas]]-Tabula1[[#This Row],[Faktiskās izmaksas]]","v":{"v":-40,"d":"-40 EUR"}},null,"CD",null,null,{"$f":"Tabula2[[#This Row],[Prognozētās izmaksas]]-Tabula2[[#This Row],[Faktiskās izmaksas]]","v":{"v":0,"d":"0 EUR"}}]
[null,"Elektrība",{"v":50,"d":"50 EUR"},{"v":60,"d":"60 EUR"},{"$f":"Tabula1[[#This Row],[Prognozētās izmaksas]]-Tabula1[[#This Row],[Faktiskās izmaksas]]","v":{"v":-10,"d":"-10 EUR"}},null,"Filmas",null,null,{"$f":"Tabula2[[#This Row],[Prognozētās izmaksas]]-Tabula2[[#This Row],[Faktiskās izmaksas]]","v":{"v":0,"d":"0 EUR"}}]
[null,"Gāze",{"v":200,"d":"200 EUR"},{"v":180,"d":"180 EUR"},{"$f":"Tabula1[[#This Row],[Prognozētās izmaksas]]-Tabula1[[#This Row],[Faktiskās izmaksas]]","v":{"v":20,"d":"20 EUR"}},null,"Koncerti",null,null,{"$f":"Tabula2[[#This Row],[Prognozētās izmaksas]]-Tabula2[[#This Row],[Faktiskās izmaksas]]","v":{"v":0,"d":"0 EUR"}}]
[null,"Ūdens un kanalizācija",null,null,{"$f":"Tabula1[[#This Row],[Prognozētās izmaksas]]-Tabula1[[#This Row],[Faktiskās izmaksas]]","v":{"v":0,"d":"0 EUR"}},null,"Sporta pasākumi",null,null,{"$f":"Tabula2[[#This Row],[Prognozētās izmaksas]]-Tabula2[[#This Row],[Faktiskās izmaksas]]","v":{"v":0,"d":"0 EUR"}}]
[null,"Kabeļtelevīzija",null,null,{"$f":"Tabula1[[#This Row],[Prognozētās izmaksas]]-Tabula1[[#This Row],[Faktiskās izmaksas]]","v":{"v":0,"d":"0 EUR"}},null,"Teātris",null,null,{"$f":"Tabula2[[#This Row],[Prognozētās izmaksas]]-Tabula2[[#This Row],[Faktiskās izmaksas]]","v":{"v":0,"d":"0 EUR"}}]
[null,"Atkritumu izvešana",null,null,{"$f":"Tabula1[[#This Row],[Prognozētās izmaksas]]-Tabula1[[#This Row],[Faktiskās izmaksas]]","v":{"v":0,"d":"0 EUR"}},null,"Citi",null,null,{"$f":"Tabula2[[#This Row],[Prognozētās izmaksas]]-Tabula2[[#This Row],[Faktiskās izmaksas]]","v":{"v":0,"d":"0 EUR"}}]
[null,"Apkope vai remonts",null,null,{"$f":"Tabula1[[#This Row],[Prognozētās izmaksas]]-Tabula1[[#This Row],[Faktiskās izmaksas]]","v":{"v":0,"d":"0 EUR"}},null,"Citi",null,null,{"$f":"Tabula2[[#This Row],[Prognozētās izmaksas]]-Tabula2[[#This Row],[Faktiskās izmaksas]]","v":{"v":0,"d":"0 EUR"}}]
[null,"Materiāli",null,null,{"$f":"Tabula1[[#This Row],[Prognozētās izmaksas]]-Tabula1[[#This Row],[Faktiskās izmaksas]]","v":{"v":0,"d":"0 EUR"}},null,"Citi",null,null,{"$f":"Tabula2[[#This Row],[Prognozētās izmaksas]]-Tabula2[[#This Row],[Faktiskās izmaksas]]","v":{"v":0,"d":"0 EUR"}}]
[null,"Citi",null,null,{"$f":"Tabula1[[#This Row],[Prognozētās izmaksas]]-Tabula1[[#This Row],[Faktiskās izmaksas]]","v":{"v":0,"d":"0 EUR"}},null,"Kopsumma",{"$f":"SUBTOTAL(109,Tabula2[Prognozētās izmaksas])","v":{"v":0,"d":"0 EUR"}},{"$f":"SUBTOTAL(109,Tabula2[Faktiskās izmaksas])","v":{"v":50,"d":"50 EUR"}},{"$f":"SUBTOTAL(109,Tabula2[Starpība])","v":{"v":-50,"d":"-50 EUR"}}]
[null,"Kopsumma",{"$f":"SUBTOTAL(109,Tabula1[Prognozētās izmaksas])","v":{"v":1810,"d":"1,810 EUR"}},{"$f":"SUBTOTAL(109,Tabula1[Faktiskās izmaksas])","v":{"v":1740,"d":"1,740 EUR"}},{"$f":"SUBTOTAL(109,Tabula1[Starpība])","v":{"v":70,"d":"70 EUR"}}]
[{"$nulls":6},"AIZDEVUMI","Prognozētās izmaksas","Faktiskās izmaksas","Starpība"]
[null,"TRANSPORTS","Prognozētās izmaksas","Faktiskās izmaksas","Starpība",null,"Personisks",null,null,{"$f":"Tabula8[[#This Row],[Prognozētās izmaksas]]-Tabula8[[#This Row],[Faktiskās izmaksas]]","v":{"v":0,"d":"0 EUR"}}]
[null,"Maksājums par transportlīdzekli",{"v":250,"d":"250 EUR"},{"v":250,"d":"250 EUR"},{"$f":"Tabula3[[#This Row],[Prognozētās izmaksas]]-Tabula3[[#This Row],[Faktiskās izmaksas]]","v":{"v":0,"d":"0 EUR"}},null,"Mācību",null,null,{"$f":"Tabula8[[#This Row],[Prognozētās izmaksas]]-Tabula8[[#This Row],[Faktiskās izmaksas]]","v":{"v":0,"d":"0 EUR"}}]
[null,"Maksa par braucienu ar autobusu/taksometru",null,null,{"$f":"Tabula3[[#This Row],[Prognozētās izmaksas]]-Tabula3[[#This Row],[Faktiskās izmaksas]]","v":{"v":0,"d":"0 EUR"}},null,"Kredītkarte",null,null,{"$f":"Tabula8[[#This Row],[Prognozētās izmaksas]]-Tabula8[[#This Row],[Faktiskās izmaksas]]","v":{"v":0,"d":"0 EUR"}}]
[null,"Apdrošināšana",null,null,{"$f":"Tabula3[[#This Row],[Prognozētās izmaksas]]-Tabula3[[#This Row],[Faktiskās izmaksas]]","v":{"v":0,"d":"0 EUR"}},null,"Kredītkarte",null,null,{"$f":"Tabula8[[#This Row],[Prognozētās izmaksas]]-Tabula8[[#This Row],[Faktiskās izmaksas]]","v":{"v":0,"d":"0 EUR"}}]
[null,"Licencēšana",null,null,{"$f":"Tabula3[[#This Row],[Prognozētās izmaksas]]-Tabula3[[#This Row],[Faktiskās izmaksas]]","v":{"v":0,"d":"0 EUR"}},null,"Kredītkarte",null,null,{"$f":"Tabula8[[#This Row],[Prognozētās izmaksas]]-Tabula8[[#This Row],[Faktiskās izmaksas]]","v":{"v":0,"d":"0 EUR"}}]
[null,"Degviela",null,null,{"$f":"Tabula3[[#This Row],[Prognozētās izmaksas]]-Tabula3[[#This Row],[Faktiskās izmaksas]]","v":{"v":0,"d":"0 EUR"}},null,"Citi",null,null,{"$f":"Tabula8[[#This Row],[Prognozētās izmaksas]]-Tabula8[[#This Row],[Faktiskās izmaksas]]","v":{"v":0,"d":"0 EUR"}}]
[null,"Uzturēšana",null,null,{"$f":"Tabula3[[#This Row],[Prognozētās izmaksas]]-Tabula3[[#This Row],[Faktiskās izmaksas]]","v":{"v":0,"d":"0 EUR"}},null,"Kopsumma",{"$f":"SUBTOTAL(109,Tabula8[Prognozētās izmaksas])","v":{"v":0,"d":"0 EUR"}},{"$f":"SUBTOTAL(109,Tabula8[Faktiskās izmaksas])","v":{"v":0,"d":"0 EUR"}},{"$f":"SUBTOTAL(109,Tabula8[Starpība])","v":{"v":0,"d":"0 EUR"}}]
[null,"Citi",null,null,{"$f":"Tabula3[[#This Row],[Prognozētās izmaksas]]-Tabula3[[#This Row],[Faktiskās izmaksas]]","v":{"v":0,"d":"0 EUR"}}]
[null,"Kopsumma",{"$f":"SUBTOTAL(109,Tabula3[Prognozētās izmaksas])","v":{"v":250,"d":"250 EUR"}},{"$f":"SUBTOTAL(109,Tabula3[Faktiskās izmaksas])","v":{"v":250,"d":"250 EUR"}},{"$f":"SUBTOTAL(109,Tabula3[Starpība])","v":{"v":0,"d":"0 EUR"}},null,"NODOKĻI","Prognozētās izmaksas","Faktiskās izmaksas","Starpība"]
[{"$nulls":6},"Federālie",null,null,{"$f":"Tabula9[[#This Row],[Prognozētās izmaksas]]-Tabula9[[#This Row],[Faktiskās izmaksas]]","v":{"v":0,"d":"0 EUR"}}]
[null,"APDROŠINĀŠANA","Prognozētās izmaksas","Faktiskās izmaksas","Starpība",null,"valsts/reģions",null,null,{"$f":"Tabula9[[#This Row],[Prognozētās izmaksas]]-Tabula9[[#This Row],[Faktiskās izmaksas]]","v":{"v":0,"d":"0 EUR"}}]
[null,"Mājas",null,null,{"$f":"Tabula4[[#This Row],[Prognozētās izmaksas]]-Tabula4[[#This Row],[Faktiskās izmaksas]]","v":{"v":0,"d":"0 EUR"}},null,"Vietējie",null,null,{"$f":"Tabula9[[#This Row],[Prognozētās izmaksas]]-Tabula9[[#This Row],[Faktiskās izmaksas]]","v":{"v":0,"d":"0 EUR"}}]
[null,"Veselība",null,null,{"$f":"Tabula4[[#This Row],[Prognozētās izmaksas]]-Tabula4[[#This Row],[Faktiskās izmaksas]]","v":{"v":0,"d":"0 EUR"}},null,"Citi",null,null,{"$f":"Tabula9[[#This Row],[Prognozētās izmaksas]]-Tabula9[[#This Row],[Faktiskās izmaksas]]","v":{"v":0,"d":"0 EUR"}}]
[null,"Dzīvība",null,null,{"$f":"Tabula4[[#This Row],[Prognozētās izmaksas]]-Tabula4[[#This Row],[Faktiskās izmaksas]]","v":{"v":0,"d":"0 EUR"}},null,"Kopsumma",{"$f":"SUBTOTAL(109,Tabula9[Prognozētās izmaksas])","v":{"v":0,"d":"0 EUR"}},{"$f":"SUBTOTAL(109,Tabula9[Faktiskās izmaksas])","v":{"v":0,"d":"0 EUR"}},{"$f":"SUBTOTAL(109,Tabula9[Starpība])","v":{"v":0,"d":"0 EUR"}}]
[null,"Citi",null,null,{"$f":"Tabula4[[#This Row],[Prognozētās izmaksas]]-Tabula4[[#This Row],[Faktiskās izmaksas]]","v":{"v":0,"d":"0 EUR"}}]
[null,"Kopsumma",{"$f":"SUBTOTAL(109,Tabula4[Prognozētās izmaksas])","v":{"v":0,"d":"0 EUR"}},{"$f":"SUBTOTAL(109,Tabula4[Faktiskās izmaksas])","v":{"v":0,"d":"0 EUR"}},{"$f":"SUBTOTAL(109,Tabula4[Starpība])","v":{"v":0,"d":"0 EUR"}},null,"IETAUPĪJUMI VAI IEGULDĪJUMI","Prognozētās izmaksas","Faktiskās izmaksas","Starpība"]
[{"$nulls":6},"Pensijas konts",null,null,{"$f":"Tabula10[[#This Row],[Prognozētās izmaksas]]-Tabula10[[#This Row],[Faktiskās izmaksas]]","v":{"v":0,"d":"0 EUR"}}]
[null,"PĀRTIKA","Prognozētās izmaksas","Faktiskās izmaksas","Starpība",null,"Ieguldījumu konts",null,null,{"$f":"Tabula10[[#This Row],[Prognozētās izmaksas]]-Tabula10[[#This Row],[Faktiskās izmaksas]]","v":{"v":0,"d":"0 EUR"}}]
[null,"Pārtikas preces",null,null,{"$f":"Tabula5[[#This Row],[Prognozētās izmaksas]]-Tabula5[[#This Row],[Faktiskās izmaksas]]","v":{"v":0,"d":"0 EUR"}},null,"Citi",null,null,{"$f":"Tabula10[[#This Row],[Prognozētās izmaksas]]-Tabula10[[#This Row],[Faktiskās izmaksas]]","v":{"v":0,"d":"0 EUR"}}]
[null,"Vakariņas restorānā",null,null,{"$f":"Tabula5[[#This Row],[Prognozētās izmaksas]]-Tabula5[[#This Row],[Faktiskās izmaksas]]","v":{"v":0,"d":"0 EUR"}},null,"Kopsumma",{"$f":"SUBTOTAL(109,Tabula10[Prognozētās izmaksas])","v":{"v":0,"d":"0 EUR"}},{"$f":"SUBTOTAL(109,Tabula10[Faktiskās izmaksas])","v":{"v":0,"d":"0 EUR"}},{"$f":"SUBTOTAL(109,Tabula10[Starpība])","v":{"v":0,"d":"0 EUR"}}]
[null,"Citi",null,null,{"$f":"Tabula5[[#This Row],[Prognozētās izmaksas]]-Tabula5[[#This Row],[Faktiskās izmaksas]]","v":{"v":0,"d":"0 EUR"}}]
[null,"Kopsumma",{"$f":"SUBTOTAL(109,Tabula5[Prognozētās izmaksas])","v":{"v":0,"d":"0 EUR"}},{"$f":"SUBTOTAL(109,Tabula5[Faktiskās izmaksas])","v":{"v":0,"d":"0 EUR"}},{"$f":"SUBTOTAL(109,Tabula5[Starpība])","v":{"v":0,"d":"0 EUR"}},null,"DĀVANAS UN ZIEDOJUMI","Prognozētās izmaksas","Faktiskās izmaksas","Starpība"]
[{"$nulls":6},"Labdarība 1",null,null,{"$f":"Tabula11[[#This Row],[Prognozētās izmaksas]]-Tabula11[[#This Row],[Faktiskās izmaksas]]","v":{"v":0,"d":"0 EUR"}}]
[null,"MĀJDZĪVNIEKI","Prognozētās izmaksas","Faktiskās izmaksas","Starpība",null,"Labdarība 2",null,null,{"$f":"Tabula11[[#This Row],[Prognozētās izmaksas]]-Tabula11[[#This Row],[Faktiskās izmaksas]]","v":{"v":0,"d":"0 EUR"}}]
[null,"Pārtika",null,null,{"$f":"Tabula6[[#This Row],[Prognozētās izmaksas]]-Tabula6[[#This Row],[Faktiskās izmaksas]]","v":{"v":0,"d":"0 EUR"}},null,"Labdarība 3",null,null,{"$f":"Tabula11[[#This Row],[Prognozētās izmaksas]]-Tabula11[[#This Row],[Faktiskās izmaksas]]","v":{"v":0,"d":"0 EUR"}}]
[null,"Medikamenti",null,null,{"$f":"Tabula6[[#This Row],[Prognozētās izmaksas]]-Tabula6[[#This Row],[Faktiskās izmaksas]]","v":{"v":0,"d":"0 EUR"}},null,"Kopsumma",{"$f":"SUBTOTAL(109,Tabula11[Prognozētās izmaksas])","v":{"v":0,"d":"0 EUR"}},{"$f":"SUBTOTAL(109,Tabula11[Faktiskās izmaksas])","v":{"v":0,"d":"0 EUR"}},{"$f":"SUBTOTAL(109,Tabula11[Starpība])","v":{"v":0,"d":"0 EUR"}}]
[null,"Kopšana",null,null,{"$f":"Tabula6[[#This Row],[Prognozētās izmaksas]]-Tabula6[[#This Row],[Faktiskās izmaksas]]","v":{"v":0,"d":"0 EUR"}}]
[null,"Rotaļlietas",null,null,{"$f":"Tabula6[[#This Row],[Prognozētās izmaksas]]-Tabula6[[#This Row],[Faktiskās izmaksas]]","v":{"v":0,"d":"0 EUR"}},null,"JURIDISKIE PAKALPOJUMI","Prognozētās izmaksas","Faktiskās izmaksas","Starpība"]
[null,"Citi",null,null,{"$f":"Tabula6[[#This Row],[Prognozētās izmaksas]]-Tabula6[[#This Row],[Faktiskās izmaksas]]","v":{"v":0,"d":"0 EUR"}},null,"Advokāts",null,null,{"$f":"Tabula12[[#This Row],[Prognozētās izmaksas]]-Tabula12[[#This Row],[Faktiskās izmaksas]]","v":{"v":0,"d":"0 EUR"}}]
[null,"Kopsumma",{"$f":"SUBTOTAL(109,Tabula6[Prognozētās izmaksas])","v":{"v":0,"d":"0 EUR"}},{"$f":"SUBTOTAL(109,Tabula6[Faktiskās izmaksas])","v":{"v":0,"d":"0 EUR"}},{"$f":"SUBTOTAL(109,Tabula6[Starpība])","v":{"v":0,"d":"0 EUR"}},null,"Alimenti",null,null,{"$f":"Tabula12[[#This Row],[Prognozētās izmaksas]]-Tabula12[[#This Row],[Faktiskās izmaksas]]","v":{"v":0,"d":"0 EUR"}}]
[{"$nulls":6},"Maksājumi ar aizturējuma tiesībām vai nolēmumu",null,null,{"$f":"Tabula12[[#This Row],[Prognozētās izmaksas]]-Tabula12[[#This Row],[Faktiskās izmaksas]]","v":{"v":0,"d":"0 EUR"}}]
[null,"PERSONISKĀ HIGIĒNA","Prognozētās izmaksas","Faktiskās izmaksas","Starpība",null,"Citi",null,null,{"$f":"Tabula12[[#This Row],[Prognozētās izmaksas]]-Tabula12[[#This Row],[Faktiskās izmaksas]]","v":{"v":0,"d":"0 EUR"}}]
[null,"Medikamenti",null,null,{"$f":"Tabula7[[#This Row],[Prognozētās izmaksas]]-Tabula7[[#This Row],[Faktiskās izmaksas]]","v":{"v":0,"d":"0 EUR"}},null,"Kopsumma",{"$f":"SUBTOTAL(109,Tabula12[Prognozētās izmaksas])","v":{"v":0,"d":"0 EUR"}},{"$f":"SUBTOTAL(109,Tabula12[Faktiskās izmaksas])","v":{"v":0,"d":"0 EUR"}},{"$f":"SUBTOTAL(109,Tabula12[Starpība])","v":{"v":0,"d":"0 EUR"}}]
[null,"Mati/nagi",null,null,{"$f":"Tabula7[[#This Row],[Prognozētās izmaksas]]-Tabula7[[#This Row],[Faktiskās izmaksas]]","v":{"v":0,"d":"0 EUR"}}]
[null,"Apģērbs",null,null,{"$f":"Tabula7[[#This Row],[Prognozētās izmaksas]]-Tabula7[[#This Row],[Faktiskās izmaksas]]","v":{"v":0,"d":"0 EUR"}},null,"KOPĒJĀS PROGNOZĒTĀS IZMAKSAS",null,null,{"$f":"SUM(C23,C33,C40,C46,C54,C64,H22,H31,H38,H44,H50,H57)","v":{"v":2060,"d":"2,060 EUR"}}]
[null,"Ķīmiskā tīrītava",null,null,{"$f":"Tabula7[[#This Row],[Prognozētās izmaksas]]-Tabula7[[#This Row],[Faktiskās izmaksas]]","v":{"v":0,"d":"0 EUR"}}]
[null,"Sporta klubs",null,null,{"$f":"Tabula7[[#This Row],[Prognozētās izmaksas]]-Tabula7[[#This Row],[Faktiskās izmaksas]]","v":{"v":0,"d":"0 EUR"}},null,"KOPĒJĀS FAKTISKĀS IZMAKSAS",null,null,{"$f":"SUM(D23,D33,D40,D46,D54,D64,I22,I31,I38,I44,I50,I57)","v":{"v":2040,"d":"2,040 EUR"}}]
[null,"Organizācijas nodevas vai maksājumi",null,null,{"$f":"Tabula7[[#This Row],[Prognozētās izmaksas]]-Tabula7[[#This Row],[Faktiskās izmaksas]]","v":{"v":0,"d":"0 EUR"}}]
[null,"Cits",null,null,{"$f":"Tabula7[[#This Row],[Prognozētās izmaksas]]-Tabula7[[#This Row],[Faktiskās izmaksas]]","v":{"v":0,"d":"0 EUR"}},null,"KOPĒJĀ STARPĪBA",null,null,{"$f":"SUM(E23,E33,E40,E46,E54,E64,J22,J31,J38,J44,J50,J57)","v":{"v":20,"d":"20 EUR"}}]
[null,"Kopsumma",{"$f":"SUBTOTAL(109,Tabula7[Prognozētās izmaksas])","v":{"v":0,"d":"0 EUR"}},{"$f":"SUBTOTAL(109,Tabula7[Faktiskās izmaksas])","v":{"v":0,"d":"0 EUR"}},{"$f":"SUBTOTAL(109,Tabula7[Starpība])","v":{"v":0,"d":"0 EUR"}}]